Cogmind - Beta 14 @@@ ROGUE MODE // 2024.08.25 @ 20:57:41 Player: javashane Result: Destroyed by G-47 Trooper with Particle Gun Performance ------------- Evolutions (0) 0 Regions Visited (2) 400 Robots Destroyed (10) 50 Value Destroyed (222) 222 Prototype IDs (0) 0 Alien Tech Used (0) 0 Bonus (0) 0 TOTAL SCORE: 672 Bonus ------- None Cogmind --------- Core Integrity 0/250 Matter 189/300 Energy 121/125 System Corruption 8% Temperature Cool (9) Movement Walking (190) Ox1 Location -10/Mines Parts ------- > --- POWER (1) -------- Light Ion Engine > --- PROPULSION (2) --- Aluminum Leg > --- UTILITY (2) ------ Improved Heat Sink Structural Scanner > --- WEAPON (2) ------- Medium Laser Heavy Battle Rifle > --- INVENTORY (5) ---- Light Ion Engine Wheel Compact Wheel Heat Sink Mining Laser Peak State ------------ > --- POWER ------------ Light Ion Engine > --- PROPULSION ------- Aluminum Leg Aluminum Leg > --- UTILITY ---------- Improved Heat Sink Structural Scanner > --- WEAPON ----------- Medium Laser Heavy Battle Rifle > --- INVENTORY -------- Light Ion Engine Wheel Compact Wheel Heat Sink Mining Laser [Rating: 12] Favorites ----------- Power Ion Engine Engine Ion Engine Propulsion Aluminum Leg Leg Aluminum Leg Utility Structural Scanner Device Structural Scanner Storage Small Storage Unit Weapon Assault Rifle Energy Gun Medium Laser Ballistic Gun Assault Rifle Special Weapon Mining Laser Build | -11 -10 -10 ------- Run | Yrd Mat Min Slots Evolved . | . . . Power . | . . . Propulsion . | . . . Utility . | . . . Weapon . | . . . Parts Attached 16 | . 4 12 Power 2 | . . 2 Engine 2 | . . 2 Core . | . . . Reactor . | . . . Propulsion 3 | . . 3 Treads . | . . . Leg 3 | . . 3 Wheel . | . . . Hover . | . . . Flight . | . . . Utility 5 | . 2 3 Device 5 | . 2 3 Storage . | . . . Processor . | . . . Hackware . | . . . Protection . | . . . Artifact . | . . . Weapon 6 | . 2 4 Energy Gun 2 | . . 2 Energy Cannon . | . . . Ballistic Gun 2 | . 1 1 Ballistic Cannon . | . . . Launcher . | . . . Special Weapon 2 | . 1 1 Impact Weapon . | . . . Slashing Weapon . | . . . Piercing Weapon . | . . . Special Melee Weapon . | . . . Unidentified Prototypes . | . . . Parts Lost 10 | . 1 9 Power 2 | . . 2 Propulsion 4 | . . 4 Utility 2 | . 1 1 Weapon 2 | . . 2 Highest Loss Streak 4 | . 1 4 To Critical Strikes . | . . . Average Slot Usage (%) 89 | . 92 88 Engine 13 | . 14 12 Leg 23 | . 28 22 Device 20 | . 6 26 Storage 4 | . 14 . Energy Gun 4 | . . 6 Ballistic Gun 18 | . 22 16 Special Weapon 3 | . 5 2 Peak Build Rating 12 | . 7 12 Average Rating 8 | . 6 8 On Entrance 6 | 6 6 7 Naked Turns . | . . . Heaviest Build 15 | 14 15 15 Greatest Support 20 | 20 20 20 Greatest Overweight (x) 3 | . . 3 Average Overweight (x) . | . . . Largest Inventory Capacity 8 | . 8 8 Average Capacity 6 | . 8 5 Most Carried 7 | . 7 7 Average Carried 5 | . 6 4 Final Capacity 8 | 8 8 5 Final Carried 7 | 6 7 5 Class Distribution -------------------- 75% | Mutant 24% | Scavenger-Mutant Dominant Class ---------------- Mutant | -10/Materials Mutant | -10/Mines Resources | -11 -10 -10 ----------- Run | Yrd Mat Min Matter Collected 441 | 177 . 264 Remotely . | . . . Salvage Created 264 | . . 264 Parts 17 | . . 17 Haulers Intercepted . | . . . Recyclers Shooed 1 | . . 1 Parts Field Recycled . | . . . Retrieved Matter . | . . . Parts Self-Destructed . | . . . Prevented . | . . . Kills | -11 -10 -10 ------- Run | Yrd Mat Min Combat Hostiles Destroyed 10 | . . 10 Guns 10 | . . 10 Classes Destroyed 2 | . . 2 Swarmer 6 | . . 6 Grunt 4 | . . 4 Best Kill Streak 3 | . . 3 Combat Bots Only 3 | . . 3 Max Kills in Single Turn 1 | . . 1 Gunslinging . | . . . Exploded . | . . . Melee . | . . . Uniques/NPCs Destroyed . | . . . Combat | -11 -10 -10 -------- Run | Yrd Mat Min Hostile Shots Fired 104 | . 8 96 Missed 26 | . 3 23 Damage Taken 1266 | . 385 881 Core 259 | . 75 184 Absorbed by Shields . | . . . Core Remaining (%) 100 | 100 . . Volleys Fired 54 | . 2 52 Largest 2 | . 1 2 Hottest 100 | . 100 100 Shots Fired 86 | . 2 84 Gun 77 | . . 77 Cannon . | . . . Launcher . | . . . Special 9 | . 2 7 Kinetic 66 | . . 66 Thermal 20 | . 2 18 Explosive . | . . . Electromagnetic . | . . . Robot Hit Streak 6 | . . 6 Robot Miss Streak 4 | . . 4 Penetration Max . | . . . Secondary Targets 3 | . . 3 Max Gunslinging Chain 1 | . . 1 Shots Hit Robots 48 | . . 48 Core Hits 18 | . . 18 Critical Kills . | . . . Critical Parts Destroyed . | . . . Critical Strikes 1 | . . 1 Burn 1 | . . 1 Melee Attacks . | . . . Impact . | . . . Slashing . | . . . Piercing . | . . . Sneak Attacks . | . . . Combat Hostiles . | . . . Follow-up Attacks . | . . . Damage Inflicted 661 | . . 661 Guns 635 | . . 635 Cannons . | . . . Explosions . | . . . Melee . | . . . Ramming 2 | . . 2 Kinetic 536 | . . 536 Thermal 123 | . . 123 Explosive . | . . . Electromagnetic . | . . . Impact . | . . . Slashing . | . . . Piercing . | . . . Highest Corruption 8 | . 8 8 Average Corruption 7 | . 6 8 Corruption Purged . | . . . Corruption Blocked . | . . . Effects 30 | . 8 22 Message Errors 11 | . 3 8 Matter Fused 7 | . 2 5 Heat Flow Errors 1 | . 1 . Energy Discharges 4 | . 2 2 Parts Rejected 1 | . . 1 Data Loss (minor) 2 | . . 2 Data Loss (major) 1 | . . 1 Misfires 1 | . . 1 Weapon Failures 2 | . . 2 Overload Shots . | . . . Overflow Damage . | . . . Projectiles . | . . . Explosions . | . . . Melee . | . . . Knockbacks . | . . . Impact . | . . . Kinetic . | . . . Secondary . | . . . Self-Inflicted Damage . | . . . Shots . | . . . Rammed . | . . . Targets Rammed 2 | . . 2 Kicked 2 | . . 2 Crushed . | . . . Highest Temperature 269 | . 269 2 Average Temperature 64 | . 89 2 Received Heat Transfer 438 | . 30 408 Siege Activations . | . . . Robots Corrupted . | . . . Combat Hostiles . | . . . Parts Fried . | . . . Impact Corruptions . | . . . Robots Melted . | . . . Combat Hostiles . | . . . Parts Melted 1 | . . 1 Heat Transferred 420 | . . 420 Parts Sabotaged . | . . . Parts Stolen . | . . . Parts Stripped . | . . . Power Chain Reactions . | . . . Alert | -11 -10 -10 ------- Run | Yrd Mat Min Peak Influence 135 | . 7 135 Initial 2 | . . 2 Average 61 | . 3 88 Maximum Alert Level . | . . . Low Security (%) 100 | . 100 100 Level 1 . | . . . Level 2 . | . . . Level 3 . | . . . Level 4 . | . . . Level 5 . | . . . High Security . | . . . Max Security . | . . . Squads Dispatched 1 | . 1 . Investigation 1 | . 1 . Extermination . | . . . Reinforcement . | . . . Assault . | . . . Garrison . | . . . Intercept . | . . . Searches Triggered . | . . . Construction Impeded . | . . . Haulers Reinforced . | . . . Active Scanning Responses . | . . . Cargo Convoy Interrupts . | . . . Stealth | -11 -10 -10 --------- Run | Yrd Mat Min Distress Signals 1 | . 1 . Communications Jammed . | . . . Distress Signals . | . . . Times Spotted 15 | . 3 12 Peak Tracking Total 3 | . 2 3 Tactical Retreats . | . . . Traps | -11 -10 -10 ------- Run | Yrd Mat Min Traps Triggered 4 | . 4 . Indirectly . | . . . Trap Hack Attempts . | . . . Triggered . | . . . Disarmed . | . . . Reprogrammed . | . . . Reused . | . . . Traps Extracted . | . . . Installed . | . . . Triggered . | . . . Machines | -11 -10 -10 ---------- Run | Yrd Mat Min Machines Disabled . | . . . Max in Single Turn . | . . . Machines Repaired . | . . . Machines Dismantled . | . . . Machines Sabotaged . | . . . Overloaded Fab Kills . | . . . Hacking | -11 -10 -10 --------- Run | Yrd Mat Min Machines Accessed 2 | . 2 . Terminals 2 | . 2 . Fabricators . | . . . Repair Stations . | . . . Recycling Units . | . . . Scanalyzers . | . . . Garrison Access . | . . . Total Hacks 4 | . 4 . Successful 2 | . 2 . Failed 2 | . 2 . Catastrophic 1 | . 1 . Database Lockouts . | . . . Manual . | . . . Terminals 4 | . 4 . Fabricators . | . . . Repair Stations . | . . . Recycling Units . | . . . Scanalyzers . | . . . Garrison Access . | . . . Terminal Hacks 2 | . 2 . Alert Level 1 | . 1 . Patrol Status 1 | . 1 . Fabricator Hacks . | . . . Repair Station Hacks . | . . . Recycling Unit Hacks . | . . . Scanalyzer . | . . . Garrison Access Hacks . | . . . Unauthorized Hacks . | . . . Terminals . | . . . Fabricators . | . . . Repair Stations . | . . . Recycling Units . | . . . Scanalyzers . | . . . Garrison Access . | . . . Data Cores Recovered . | . . . Used . | . . . Hacking Detections 1 | . 1 . Full Trace Events 1 | . 1 . Feedback Events . | . . . Feedback Blocked . | . . . Robot Schematics Acquired . | . . . Robots Built . | . . . Authchips . | . . . Time . | . . . Total Robot Build Rating . | . . . Part Schematics Acquired . | . . . Parts Built . | . . . Authchips . | . . . Time . | . . . Total Part Build Rating . | . . . Parts Repaired . | . . . Time . | . . . Parts Recycled . | . . . Recycled Matter . | . . . Retrieved Matter . | . . . Retrieved Components . | . . . Parts Scanalyzed . | . . . Part Schematics Acquired . | . . . Parts Damaged . | . . . Bothacking | -11 -10 -10 ------------ Run | Yrd Mat Min Used RIF Installer . | . . . Robots Hacked . | . . . Non-combat . | . . . Combat . | . . . Robot Hacks Applied . | . . . Relay Couplers Released . | . . . Fabnet Peak Effective % . | . . . Robots Rewired . | . . . Allies Hacked . | . . . Hacks Repelled . | . . . Allies | -11 -10 -10 -------- Run | Yrd Mat Min Total Allies . | . . . Largest Group . | . . . Highest-Rated Group . | . . . Highest-Rated Ally . | . . . Total Orders . | . . . Ally Attacks . | . . . Total Damage . | . . . Kills . | . . . Allies Corrupted . | . . . Allies Melted . | . . . Intel | -11 -10 -10 ------- Run | Yrd Mat Min Robot Analysis Total . | . . . Derelict Logs Recovered 1 | . . 1 Drone Launches . | . . . Drone Recoveries . | . . . Exploration | -11 -10 -10 ------------- Run | Yrd Mat Min Turns Passed 875 | . 274 601 Spaces Moved 451 | 1 162 288 Core 2 | . . 2 Treads . | . . . Legs 449 | 1 162 286 Wheels . | . . . Hover . | . . . Flight . | . . . Fastest Speed 120 | 120 120 120 Average Speed 125 | 120 120 128 Slowest Speed 200 | 120 120 200 Overloaded Moves . | . . . Propulsion Burnouts . | . . . Robots Hopped . | . . . Cave-ins Triggered 1 | . 1 . Exploration Rate (%) 25 | 2 31 43 Regions Visited 2 Branch Regions 1 Pre-discovered Areas . | . . . Known Exits Taken . | . . . Unknown Exits Taken 2 | 1 1 . Scrap Searched . | . . . Spaces Dug 6 | . 2 4 Terrain Destroyed 8 | . 2 6 Melee . | . . . Projectile 8 | . 2 6 AOE . | . . . Terrain Rammed . | . . . Walls Destroyed . | . . . Machines Disabled . | . . . Actions | -11 -10 -10 --------- Run | Yrd Mat Min Total 650 | . 233 417 Wait 127 | . 65 62 Move 449 | . 161 288 Hop . | . . . Pick Up 2 | . 1 1 Fast Attach 9 | . 2 7 Attach 2 | . . 2 Detach . | . . . Swap 5 | . 2 3 Drop . | . . . Fire 54 | . 2 52 Melee . | . . . Ram . | . . . Kick 2 | . . 2 Crush . | . . . Escape Stasis . | . . . Rewire . | . . . Trap . | . . . Miscellaneous . | . . . Route ------- -11/Scrapyard -10/Materials -10/Mines (discovered 1 exit: [*Mat]) History --------- Turn | Location | Event 1 | -11/Scrapyard | Discovered new exit (range 0) 1 | -11/Scrapyard | Entered Materials 76 | -10/Materials | Crushed by falling debris 255 | -10/Materials | Discovered new exit (range 15) 275 | -10/Materials | Entered Mines 314 | -10/Mines | Build established: Mutant 341 | -10/Mines | Lost 3 parts (2n1u) 349 | -10/Mines | Core integrity fell below 50% 399 | -10/Mines | Discovered new exit (range 5) 491 | -10/Mines | Core integrity fell below 20% 517 | -10/Mines | Lost 4 parts (1p1n2w) 587 | -10/Mines | A weapon hastily lodged in a ceiling crevice suddenly fell to the ground 633 | -10/Mines | Learned Materials garrison access intel 876 | -10/Mines | Destroyed by G-47 Trooper with Particle Gun Last Messages --------------- 00633_ Acquired derelict log, extracted data. Data stored: Materials garrison access intel. 00634_ TXV05|BV5KD >CXX/Q#LR 00801_ System corrupted: Matter fused (-5). 00814_ U-05 Engineer builds a Wall. Map ----- +----------------------------------------------------+ | ?????????????????????????????????????????????????? | | ?????????????????????????????????????????????????? | | ?????????????????????????????????????????????????? | | ?????????????????????????????????????????????????? | | ?????????????????????????????????????????????????? | | ?????????????????????????????????????????????????? | | ?????????????????????????????????????????????????? | | ?????????????????????????????????????????????????? | | ""???????????????????????????????????????????????? | | ""?? ##??????????????????????????????????????????? | | ?? ##??????????????????????????????????????????? | | """ ##??????????????????????????????????????????? | | """ ##?????????????????????????? ???????????????? | | """ ##??????????????????????### ???????????????? | | ##?????######???????????### ????????????????? | | ##????########??????????# ????????????????? | | ????????### ##??????????? ?????????????????? | | ??????????## ?????????? ???? ##??????????? | | ???????????## ????????? #### ##??????????? | | ???????????## ###??????## ###### ##??????????? | | ?????#####?## ###??????## ##??????????? | | ##?########## ##????### ???????????##### | | ####### ##### ##???#### ##??????########## | | ##### #### ###?####r ##??########### | | #### ## ####### ###?#########= | | #### #####@ ###??### * ## | | ##### #### ##???## =## | | ##?### g ##?#### ## ##### | | ##?#### gu ####### ## ##### "" | | ##??### ### ######### ### ##?## "" | | ##???## #### ###### #### ##?## "" | | ##???### ##### ##### #### ##?##### | | ##???##### ####### ### #### ##?##### | | ########### ######## ## ##### ##?????? | | ############ ####??### ##### ##?????? | | #### ####### ####???## #### ###????? | | ### ##### ####????## ###????? | | #### #### ###?####### ##????? | | #### #### ##?########## ####??? | | #### ! ### ###### ###### ####??? | | ## ##### ##### ####?? | | ###### #### ####?? | | ######## ######## ### ## # ##?? | | ##??##### ######### #### ## ##?? | | ??????########????### ## ############?? | | ???????######?????############### #############?? | | ???????????????????###################???????????? | | ???????????????????????????????######????????????? | | ?????????????????????????????????????????????????? | | | +----------------------------------------------------+ Best States ------------- Heat Dissipation 39 Energy Generation 10 Energy Capacity 250 Matter Stores 277 Matter Capacity 300 Sight Range 16 Terrain Scan Density 10 Evasion (%) 55 Item Schematics ----------------- None Robot Schematics ------------------ None Fabricated ------------ Nothing Alien Tech Used ----------------- None Achievements -------------- None Challenges ------------ None Game ------ Seed IntegrityFlightActivator Manual? 0 Play Time 00:08:45 Cumulative 31.9 hours Start 2024.08.25 @ 20:49:57 End 2024.08.25 @ 20:57:41 Sessions 1 Manual Loads 0 Difficulty Rogue Special Mode None Game No. 55 Rogue 54 Adventurer 1 Explorer 0 Win Type - Total 0 Types 0/0/0/0/0/0/0/0/0 Lore% 8 Gallery% 29 Achievement% 24 Wizard Run 0 Options --------- Layout 0 ASCII 0 Keyboard 0 Movement Arrows Keybinds 0 Fullscreen 1 Font 24/Smallcaps Map View 76x50 Zoom Use 0% Tactical HUD 1 Map Filters NONE Filters NONE Steam 1 RUN: 35673709-257b-4e45-a0ad-b7d655d64bee